[Event "Lozovatsky Memorial-B 2020"]
[Site "Chelyabinsk"]
[Date "2020.01.22"]
[Round "8.8"]
[White "Somkin, Kirill"]
[Black "Tsvetkov, Pavel"]
[Result "0-1"]
[ECO "C28"]
[WhiteElo "2121"]
[BlackElo "2190"]
[Annotator "NA"]
[PlyCount "112"]
[EventDate "2020.01.15"]
[EventType "tourn"]
[EventCountry "RUS"]
[SourceTitle "playchess.com"]
[Source "ChessBase"]
[SourceQuality "1"]
[TimeControl "5400+30"]

1. e4 {[%emt 0:00:00]} e5 {[%emt 0:00:00]} 2. Nc3 {[%emt 0:00:00]} Nc6 {[%emt 0:00:00]} 3. Bc4 {[%emt 0:00:00]} Nf6 {[%emt 0:00:00]} 4. d3 {[%emt 0:00:09]} h6 {[%emt 0:00:29]} 5. a3 {[%emt 0:00:25]} d6 {[%emt 0:00:58]} 6. Nge2 {[%emt 0:00:58]} g5 {[%emt 0:03:24]} 7. Ng3 {[%emt 0:07:41]} Bg4 {[%emt 0:05:21]} 8. f3 {[%emt 0:05:04]} Be6 {[%emt 0:00:03]} 9. Be3 {[%emt 0:04:16]} Qd7 {[%emt 0:06:05]} 10. Qd2 {[%emt 0:04:05]} O-O-O {[%emt 0:00:56]} 11. Nd5 {[%emt 0:09:35]} Bg7 {[%emt 0:13:47]} 12. O-O-O {[%emt 0:19:47]} Kb8 {[%emt 0:00:17]} 13. h4 {[%emt 0:04:54]} gxh4 {[%emt 0:10:20]} 14. Rxh4 {[%emt 0:00:18]} Bxd5 {[%emt 0:00:03]} 15. exd5 {[%emt 0:03:19]} Ne7 $1 {[%emt 0:00:06]} 16. Rdh1 $11 {[%emt 0:10:22]} ({Much worse is} 16. Qa5 b6 $15) 16... Rhg8 {[%emt 0:08:57]} 17. Nh5 {[%emt 0:11:27]} Nf5 {[%emt 0:02:05]} 18. Bxa7+ {[%emt 0:01:14]} Kxa7 {[%emt 0:03:30]} 19. Qa5+ {[%emt 0:00:06]} Kb8 {[%emt 0:00:04]} 20. Bb5 {[%emt 0:00:13]} c6 {[%emt 0:00:28]} 21. Ra4 {[%emt 0:01:37]} Nxd5 {[%emt 0:02:23]} 22. Bxc6 {[%emt 0:00:46]} Qxc6 {[%emt 0:00:18]} 23. Qa7+ {[%emt 0:00:05]} Kc7 {[%emt 0:09:34]} 24. Rc4 {[%emt 0:00:02]} Nb6 {[%emt 0:02:15]} 25. Rxc6+ {[%emt 0:00:13]} Kxc6 {[%emt 0:00:03]} 26. Qa5 {[%emt 0:00:21]} Nd4 {[%emt 0:00:08]} 27. Qc3+ {[%emt 0:00:45]} Kd7 {[%emt 0:00:05]} 28. Qb4 {[%emt 0:00:13]} Kc7 {[%emt 0:00:15]} 29. c3 {[%emt 0:01:22]} Nc6 {[%emt 0:00:25]} 30. Qh4 {[%emt 0:00:49]} Bf8 {[%emt 0:00:15]} 31. Qf2 {[%emt 0:02:10]} Be7 {[%emt 0:02:07]} 32. Ng3 {[%emt 0:00:23]} Nd5 {[%emt 0:02:46]} 33. Kc2 {[%emt 0:03:11]} Rg5 {[%emt 0:03:09]} 34. Nf1 {[%emt 0:00:24]} Rdg8 {[%emt 0:00:20]} 35. g3 {[%emt 0:00:56]} h5 {[%emt 0:01:14]} 36. Kb1 {[%emt 0:01:23]} f5 {[%emt 0:05:52]} 37. c4 {[%emt 0:01:55]} Nf6 {[%emt 0:09:42]} 38. Rh2 {[%emt 0:00:03]} f4 {[%emt 0:00:39]} 39. gxf4 {[%emt 0:00:14]} exf4 {[%emt 0:00:04]} 40. b4 {[%emt 0:01:50]} Rg1 {[%emt 0:01:03]} 41. Ka2 {[%emt 0:01:15]} h4 {[%emt 0:01:27]} 42. Kb3 {[%emt 0:01:47]} Nd7 {[%emt 0:00:26]} 43. Nd2 {[%emt 0:01:13]} Bf6 {[%emt 0:00:35]} 44. Ne4 {[%emt 0:00:28]} Rb1+ {[%emt 0:02:03]} 45. Ka2 {[%emt 0:00:16]} Ra1+ {[%emt 0:03:12]} 46. Kb3 {[%emt 0:00:02]} Bd4 {[%emt 0:01:43]} 47. Qxh4 {[%emt 0:01:50]} Rb1+ {[%emt 0:00:06]} 48. Ka2 {[%emt 0:00:10]} Rgg1 {[%emt 0:00:05]} 49. c5 {[%emt 0:01:59]} d5 {[%emt 0:00:04]} 50. Qxf4+ {[%emt 0:01:11]} Be5 {[%emt 0:00:09]} 51. Qd2 {[%emt 0:00:09]} Ra1+ {[%emt 0:02:34]} 52. Kb3 {[%emt 0:00:01]} Rgb1+ {[%emt 0:00:05]} 53. Ka4 {[%emt 0:00:06]} dxe4 {[%emt 0:00:06]} 54. Rh7 {[%emt 0:00:34]} e3 {[%emt 0:00:51]} 55. b5 {[%emt 0:00:23]} exd2 {[%emt 0:00:19]} 56. b6+ {[%emt 0:00:02]} Kc8 {[%emt 0:00:10]} 0-1

[Event "Lozovatsky Memorial-B 2020"]
[Site "Chelyabinsk"]
[Date "2020.01.22"]
[Round "8.9"]
[White "Nugumanov, Bakhtiyar"]
[Black "Tologontegin, Semetey"]
[Result "1/2-1/2"]
[ECO "E10"]
[WhiteElo "2389"]
[BlackElo "2355"]
[Annotator "NA"]
[PlyCount "83"]
[EventDate "2020.01.15"]
[EventType "tourn"]
[EventCountry "RUS"]
[SourceTitle "playchess.com"]
[Source "ChessBase"]
[SourceQuality "1"]
[TimeControl "5400+30"]

1. d4 {[%emt 0:00:00]} Nf6 {[%emt 0:00:35]} 2. c4 {[%emt 0:01:50]} e6 {[%emt 0:00:21]} 3. Nf3 {[%emt 0:00:58]} d5 {[%emt 0:01:19]} 4. g3 {[%emt 0:00:43]} Bb4+ {[%emt 0:00:17]} 5. Bd2 {[%emt 0:00:25]} Be7 {[%emt 0:00:08]} 6. Bg2 {[%emt 0:00:33]} O-O {[%emt 0:00:10]} 7. O-O {[%emt 0:00:18]} Nbd7 {[%emt 0:00:14]} 8. Qc2 {[%emt 0:01:23]} Ne4 {[%emt 0:00:18]} 9. Nc3 {[%emt 0:03:49]} Nxd2 {[%emt 0:04:50]} 10. Nxd2 {[%emt 0:02:14]} c6 $14 {[%emt 0:08:27]} 11. Rfd1 {[%emt 0:03:06]} f5 {[%emt 0:08:01]} 12. a3 {[%emt 0:03:50]} Nf6 {[%emt 0:05:13]} 13. b4 {[%emt 0:03:46]} a6 {[%emt 0:03:00]} 14. Nf3 {[%emt 0:04:51]} Bd7 {[%emt 0:04:15]} 15. Ne5 {[%emt 0:03:57]} Be8 {[%emt 0:10:32]} 16. Na4 {[%emt 0:03:46]} Bd6 {[%emt 0:00:19]} 17. Nc5 {[%emt 0:06:43]} Qe7 {[%emt 0:00:20]} 18. Rab1 {[%emt 0:06:10]} g5 {[%emt 0:08:12]} 19. Ncd3 {[%emt 0:03:27]} Bg6 {[%emt 0:16:03]} 20. a4 {[%emt 0:03:10]} Ng4 {[%emt 0:09:16]} 21. Nxg6 {[%emt 0:03:56]} hxg6 {[%emt 0:00:09]} 22. b5 {[%emt 0:00:38]} axb5 {[%emt 0:00:34]} 23. axb5 {[%emt 0:00:08]} Qf6 {[%emt 0:06:45]} 24. e3 {[%emt 0:04:54]} f4 {[%emt 0:00:44]} 25. exf4 {[%emt 0:02:54]} gxf4 {[%emt 0:00:04]} 26. Bh3 {[%emt 0:03:37]} Nh6 {[%emt 0:04:44]} 27. bxc6 {[%emt 0:02:12]} fxg3 {[%emt 0:03:54]} 28. hxg3 {[%emt 0:00:17]} bxc6 {[%emt 0:00:03]} 29. cxd5 {[%emt 0:02:03]} cxd5 {[%emt 0:00:02]} 30. Rb6 {[%emt 0:00:17]} Rad8 {[%emt 0:00:52]} 31. Nc5 {[%emt 0:04:46]} Nf5 {[%emt 0:04:06]} 32. Bxf5 {[%emt 0:00:47]} gxf5 {[%emt 0:01:25]} 33. Nb7 {[%emt 0:00:39]} Rb8 {[%emt 0:00:23]} 34. Qe2 {[%emt 0:00:55]} f4 {[%emt 0:00:51]} 35. Rxd6 {[%emt 0:01:31]} Rxb7 {[%emt 0:00:04]} 36. Rxe6 {[%emt 0:00:45]} Qf5 {[%emt 0:00:56]} 37. Re5 {[%emt 0:00:59]} Qg6 {[%emt 0:00:01]} 38. Qf3 {[%emt 0:01:35]} Rb1 {[%emt 0:00:58]} 39. Qxd5+ {[%emt 0:02:01]} Kg7 {[%emt 0:00:00]} 40. Re7+ {[%emt 0:00:50]} Kh6 {[%emt 0:00:44]} 41. Qh1+ {[%emt 0:00:20]} Kg5 {[%emt 0:00:25]} 42. Qh4+ {[%emt 0:00:12]} 1/2-1/2

[Event "Lozovatsky Memorial-B 2020"]
[Site "Chelyabinsk"]
[Date "2020.01.22"]
[Round "8.9"]
[White "Mischuk, Dmitry"]
[Black "Sitnikov, Anton"]
[Result "*"]
[ECO "E10"]
[WhiteElo "2358"]
[BlackElo "2406"]
[Annotator "RC"]
[PlyCount "20"]
[EventDate "2020.01.15"]
[EventType "tourn"]
[EventCountry "RUS"]
[SourceTitle "playchess.com"]
[Source "ChessBase"]
[SourceQuality "1"]
[TimeControl "5400+30"]

1. d4 {[%emt 0:00:00]} Nf6 {[%emt 0:00:35]} 2. c4 {[%emt 0:01:50]} e6 {[%emt 0:00:21]} 3. Nf3 {[%emt 0:00:58]} d5 {[%emt 0:01:19]} 4. g3 {[%emt 0:00:43]} Bb4+ {[%emt 0:00:17]} 5. Bd2 {[%emt 0:00:25]} Be7 {[%emt 0:00:08]} 6. Bg2 {[%emt 0:00:33]} O-O {[%emt 0:00:10]} 7. O-O {[%emt 0:00:18]} Nbd7 {[%emt 0:00:14]} 8. Qc2 {[%emt 0:01:23]} Ne4 {[%emt 0:00:18]} 9. Nc3 {[%emt 0:03:49]} Nxd2 {[%emt 0:04:50]} 10. Nxd2 {[%emt 0:02:14]} c6 {[%emt 0:08:27]} *

[Event "Lozovatsky Memorial-B 2020"]
[Site "Chelyabinsk"]
[Date "2020.01.22"]
[Round "8.10"]
[White "Scherbakov, Mikhail"]
[Black "Ansat, Aldiyar"]
[Result "1-0"]
[ECO "B51"]
[WhiteElo "2232"]
[BlackElo "2263"]
[Annotator "NA"]
[PlyCount "179"]
[EventDate "2020.01.15"]
[EventType "tourn"]
[EventCountry "RUS"]
[SourceTitle "playchess.com"]
[Source "ChessBase"]
[SourceQuality "1"]
[TimeControl "5400+30"]

1. e4 {[%emt 0:00:00]} c5 {[%emt 0:00:00]} 2. Nf3 {[%emt 0:00:00]} d6 {[%emt 0:00:00]} 3. Bb5+ {[%emt 0:00:24]} Nd7 {[%emt 0:00:00]} 4. c3 {[%emt 0:00:25]} Ngf6 {[%emt 0:01:35]} 5. Qe2 {[%emt 0:00:10]} a6 {[%emt 0:01:31]} 6. Ba4 {[%emt 0:00:08]} b5 {[%emt 0:01:45]} 7. Bc2 {[%emt 0:00:11]} e5 {[%emt 0:00:29]} 8. O-O {[%emt 0:01:38]} Be7 {[%emt 0:00:37]} 9. d4 {[%emt 0:01:17]} O-O {[%emt 0:00:57]} 10. Re1 {[%emt 0:02:16] B51: Sicilian: Moscow Variation (3 Bb5+) without 3...Bd7} (10. Rd1 Qc7 11. d5 c4 12. Nbd2 Nc5 13. b3 a5 14. bxc4 bxc4 15. Nf1 Ba6 16. Ng3 Rfb8 17. Ba3 g6 18. Qe3 {0-1 (43) Mamedov,R (2645)-Wang,H (2726) Douglas 2019}) 10... Qc7 {[%emt 0:01:37]} 11. dxe5 {[%emt 0:01:02]} dxe5 {[%emt 0:01:57]} 12. a4 $146 {[%emt 0:00:11]} ({Predecessor:} 12. Nbd2 Bb7 13. Nf1 c4 14. Ng3 Nc5 15. Ng5 h6 16. Nh3 Rfd8 17. f3 Nd3 18. Bxd3 cxd3 {0-1 (43) Hosticka,F (2178)-Hodova,L (2093) Prague 2009}) 12... Rb8 {[%emt 0:04:11]} 13. axb5 {[%emt 0:16:27]} axb5 {[%emt 0:00:41]} 14. b3 {[%emt 0:01:58]} Rd8 {[%emt 0:08:00]} 15. Na3 {[%emt 0:01:16]} Ba6 {[%emt 0:05:53]} 16. Bd3 {[%emt 0:02:20]} c4 {[%emt 0:08:59]} 17. bxc4 {[%emt 0:00:23]} Bxa3 {[%emt 0:00:24]} ({Better is} 17... Nc5 $11 18. Bc2 bxc4) 18. Bxa3 {[%emt 0:01:20]} bxc4 {[%emt 0:00:25]} 19. Bc2 {[%emt 0:00:06]} Bb7 {[%emt 0:05:18]} 20. Be7 {[%emt 0:01:01]} Rdc8 {[%emt 0:10:58]} 21. Rad1 {[%emt 0:03:27]} Ne8 {[%emt 0:02:33]} 22. Bb4 {[%emt 0:01:57]} Ra8 {[%emt 0:07:59]} 23. Ra1 {[%emt 0:00:48]} Nef6 {[%emt 0:01:00]} 24. Nd2 {[%emt 0:00:51]} h6 {[%emt 0:09:06]} 25. Rxa8 {[%emt 0:01:06]} Bxa8 {[%emt 0:00:02]} 26. Ra1 $16 {[%emt 0:02:47]} Bb7 {[%emt 0:00:28]} 27. Ra7 {[%emt 0:00:59]} Qb8 {[%emt 0:02:20]} 28. Ra5 {[%emt 0:01:45]} Nb6 {[%emt 0:02:53]} 29. Qe3 {[%emt 0:02:07]} Nfd7 {[%emt 0:02:09]} 30. f3 {[%emt 0:03:11]} Rc6 {[%emt 0:02:20]} 31. Qf2 {[%emt 0:04:09]} Qd8 {[%emt 0:02:08]} 32. Nf1 {[%emt 0:00:52]} Re6 {[%emt 0:06:34]} 33. Qd2 {[%emt 0:00:39]} Qh4 {[%emt 0:03:23]} 34. Bd1 {[%emt 0:02:05]} Bc6 {[%emt 0:01:28]} 35. Be2 {[%emt 0:00:37]} Rg6 {[%emt 0:04:03]} 36. Ne3 {[%emt 0:01:10]} Kh7 {[%emt 0:03:35]} 37. Nxc4 {[%emt 0:07:17]} Nxc4 {[%emt 0:00:17]} 38. Bxc4 {[%emt 0:00:10]} Qf6 {[%emt 0:00:04]} 39. Qe3 {[%emt 0:01:08]} h5 {[%emt 0:00:48]} 40. Ra6 {[%emt 0:01:32]} Nb8 {[%emt 0:00:13]} 41. Ra2 {[%emt 0:00:30]} h4 {[%emt 0:00:20]} 42. h3 {[%emt 0:00:25]} Bd7 {[%emt 0:00:08]} 43. Kh2 {[%emt 0:01:52]} Rg3 {[%emt 0:00:01]} 44. Rf2 {[%emt 0:01:31]} Nc6 {[%emt 0:00:24]} 45. Bb5 {[%emt 0:01:34]} Qg6 {[%emt 0:01:04]} 46. Bxc6 {[%emt 0:02:06]} Qxc6 {[%emt 0:01:31]} 47. Qd2 {[%emt 0:02:59]} Qb6 {[%emt 0:00:50]} 48. c4 {[%emt 0:01:26]} Bc8 {[%emt 0:00:27]} 49. Bd6 {[%emt 0:02:32]} f6 {[%emt 0:00:08]} 50. f4 {[%emt 0:01:00]} Rg6 {[%emt 0:00:54]} 51. fxe5 {[%emt 0:00:55]} fxe5 {[%emt 0:00:01]} 52. Bxe5 {[%emt 0:00:30]} Qe6 {[%emt 0:00:55]} 53. Qd5 {[%emt 0:01:00]} Bb7 {[%emt 0:00:33]} 54. Qd4 {[%emt 0:07:25]} Rg5 {[%emt 0:00:01]} 55. Bf4 {[%emt 0:00:27]} Rg6 {[%emt 0:00:07]} 56. Re2 {[%emt 0:00:38]} Ba6 {[%emt 0:01:17]} 57. Rc2 {[%emt 0:01:14]} Bb7 {[%emt 0:00:09]} 58. e5 {[%emt 0:00:40]} Bc6 {[%emt 0:00:57]} 59. Qd8 {[%emt 0:02:23]} Rh6 {[%emt 0:00:29]} 60. Rf2 {[%emt 0:00:07]} Rh5 {[%emt 0:00:32]} 61. Qd3+ {[%emt 0:01:27]} Rf5 {[%emt 0:00:25]} 62. c5 {[%emt 0:00:20]} Bd5 {[%emt 0:00:34]} 63. Rd2 {[%emt 0:03:33]} Ba8 {[%emt 0:00:28]} 64. Ra2 {[%emt 0:02:45]} Bc6 {[%emt 0:00:29]} 65. Ra6 {[%emt 0:00:21]} g6 {[%emt 0:00:24]} 66. Ra7+ {[%emt 0:00:05]} Rf7 {[%emt 0:00:04]} 67. Qd6 {[%emt 0:03:39]} Bd5 {[%emt 0:00:24]} 68. Rxf7+ {[%emt 0:00:39]} Qxf7 {[%emt 0:00:03]} 69. Qf6 {[%emt 0:00:08]} Qb7 {[%emt 0:01:18]} 70. Qxh4+ {[%emt 0:00:19]} Kg8 {[%emt 0:00:08]} 71. Qf6 {[%emt 0:00:13]} Qc6 {[%emt 0:00:37]} 72. Qd8+ {[%emt 0:00:26]} Kf7 {[%emt 0:00:22]} 73. Bg5 {[%emt 0:01:19]} Qe6 {[%emt 0:01:08]} 74. Qc7+ {[%emt 0:00:49]} Ke8 {[%emt 0:00:04]} 75. Qd6 {[%emt 0:00:25]} Kf7 {[%emt 0:00:19]} 76. Bh6 {[%emt 0:00:21]} Ke8 {[%emt 0:00:23]} 77. Bg5 {[%emt 0:02:28]} Kf7 {[%emt 0:00:10]} 78. Qc7+ {[%emt 0:00:10]} Ke8 {[%emt 0:00:09]} 79. Bf6 {[%emt 0:00:04]} Qd7 {[%emt 0:00:39]} 80. Qd6 {[%emt 0:00:23]} Qe6 {[%emt 0:00:31]} 81. g4 {[%emt 0:00:23]} Kf7 {[%emt 0:00:38]} 82. Qc7+ {[%emt 0:00:05]} Ke8 {[%emt 0:00:05]} 83. Kg3 {[%emt 0:00:17]} Qd7 {[%emt 0:00:54]} 84. Qd6 {[%emt 0:00:05]} Qb7 {[%emt 0:01:35]} 85. Kh4 {[%emt 0:00:32]} Kf7 {[%emt 0:00:26]} 86. Kg5 {[%emt 0:00:21]} Be6 {[%emt 0:00:15]} 87. c6 {[%emt 0:00:11]} Qa7 {[%emt 0:00:12]} 88. Qd3 {[%emt 0:00:53]} Qc5 {[%emt 0:00:30]} 89. Qxg6+ {[%emt 0:00:17]} Kf8 {[%emt 0:00:14]} 90. Bg7+ {[%emt 0:00:15]} 1-0